[Event "*** SCC Grand Prix: Titled Tuesday Blitz"]
[Site "Chess.com"]
[Date "2020.09.29"]
[Round "6"]
[White "dominikaf"]
[Black "JoliyRoger"]
[Result "0-1"]
[WhiteElo "2301"]
[BlackElo "2440"]
[TimeControl "180+1"]
[EndTime "11:05:09 PDT"]
[Termination "JoliyRoger won on time"]

1. d4 {[%clk 0:00:15.6]} 1... Nf6 {[%clk 0:02:57]} 2. Bf4 {[%clk 0:00:15.4]}
2... e6 {[%clk 0:02:54.4]} 3. e3 {[%clk 0:00:15.4]} 3... c5 {[%clk 0:02:54.9]}
4. Nd2 {[%clk 0:00:14.7]} 4... d5 {[%clk 0:02:53.2]} 5. c3 {[%clk 0:00:14.6]}
5... Nc6 {[%clk 0:02:52.2]} 6. Ngf3 {[%clk 0:00:13.8]} 6... Nh5 {[%clk
0:02:50.4]} 7. Bg3 {[%clk 0:00:13.4]} 7... Be7 {[%clk 0:02:50.1]} 8. Bd3 {[%clk
0:00:14]} 8... Nxg3 {[%clk 0:02:50.2]} 9. hxg3 {[%clk 0:00:14.2]} 9... g6 {[%clk
0:02:50.8]} 10. Qe2 {[%clk 0:00:14.5]} 10... b6 {[%clk 0:02:44.3]} 11. Rd1
{[%clk 0:00:15]} 11... Bf6 {[%clk 0:02:43.1]} 12. dxc5 {[%clk 0:00:13.7]} 12...
bxc5 {[%clk 0:02:42.7]} 13. e4 {[%clk 0:00:14.6]} 13... O-O {[%clk 0:02:39.7]}
14. e5 {[%clk 0:00:13.9]} 14... Bg7 {[%clk 0:02:39.7]} 15. g4 {[%clk 0:00:13.8]}
15... Qc7 {[%clk 0:02:35.9]} 16. Qe3 {[%clk 0:00:10.9]} 16... Nxe5 {[%clk
0:02:23.6]} 17. Bc2 {[%clk 0:00:11.1]} 17... d4 {[%clk 0:01:51.1]} 18. Qg5
{[%clk 0:00:07.8]} 18... d3 {[%clk 0:01:45.6]} 19. Bb1 {[%clk 0:00:06.8]} 19...
c4 {[%clk 0:01:38.5]} 20. Qh4 {[%clk 0:00:05.7]} 20... h6 {[%clk 0:01:38.1]} 21.
O-O {[%clk 0:00:03.5]} 21... Nxf3+ {[%clk 0:01:29.7]} 22. Nxf3 {[%clk
0:00:03.5]} 22... e5 {[%clk 0:01:28.1]} 23. Rfe1 {[%clk 0:00:03.8]} 23... Bb7
{[%clk 0:01:23.9]} 24. b3 {[%clk 0:00:04]} 24... cxb3 {[%clk 0:00:43.6]} 25.
axb3 {[%clk 0:00:03.3]} 25... Qxc3 {[%clk 0:00:41]} 26. Rxd3 {[%clk 0:00:02.8]}
26... Qc7 {[%clk 0:00:39.6]} 27. Rde3 {[%clk 0:00:02.4]} 27... Rae8 {[%clk
0:00:37.2]} 28. g5 {[%clk 0:00:01.3]} 28... h5 {[%clk 0:00:35.4]} 29. Be4 {[%clk
0:00:01.6]} 29... Bc8 {[%clk 0:00:26.1]} 0-1

[Event "*** SCC Grand Prix: Titled Tuesday Blitz"]
[Site "Chess.com"]
[Date "2020.09.29"]
[Round "6"]
[White "MateusViageiro"]
[Black "shineatchess"]
[Result "1-0"]
[WhiteElo "2348"]
[BlackElo "2209"]
[TimeControl "180+1"]
[EndTime "11:05:09 PDT"]
[Termination "MateusViageiro won on time"]

1. e4 {[%clk 0:03:00.9]} 1... Nf6 {[%clk 0:02:59.2]} 2. e5 {[%clk 0:02:56.4]}
2... Nd5 {[%clk 0:02:57.8]} 3. Nf3 {[%clk 0:02:57.3]} 3... d6 {[%clk 0:02:52.8]}
4. d4 {[%clk 0:02:57.6]} 4... g6 {[%clk 0:02:51.9]} 5. Bc4 {[%clk 0:02:56.7]}
5... Nb6 {[%clk 0:02:49.5]} 6. Bb3 {[%clk 0:02:56.8]} 6... Bg7 {[%clk
0:02:42.5]} 7. Bxf7+ {[%clk 0:02:48.1]} 7... Kxf7 {[%clk 0:02:37.3]} 8. Ng5+
{[%clk 0:02:42.8]} 8... Ke8 {[%clk 0:02:32.8]} 9. e6 {[%clk 0:02:36.9]} 9... Rf8
{[%clk 0:02:08.5]} 10. d5 {[%clk 0:02:22.9]} 10... c6 {[%clk 0:02:02.9]} 11.
Nxh7 {[%clk 0:02:20.8]} 11... Nxd5 {[%clk 0:01:34.2]} 12. Qg4 {[%clk 0:02:12.2]}
12... Qa5+ {[%clk 0:01:17.6]} 13. c3 {[%clk 0:01:56]} 13... Nc7 {[%clk
0:00:39.1]} 14. Qxg6+ {[%clk 0:01:51.1]} 14... Kd8 {[%clk 0:00:37.9]} 15. Nxf8
{[%clk 0:01:34]} 15... Qe5+ {[%clk 0:00:30]} 16. Be3 {[%clk 0:01:29.9]} 16...
Bxf8 {[%clk 0:00:29.2]} 17. O-O {[%clk 0:01:26.5]} 17... Qxe6 {[%clk 0:00:21.6]}
18. Qg3 {[%clk 0:01:25.4]} 18... Qg4 {[%clk 0:00:13.5]} 19. Nd2 {[%clk 0:01:22]}
19... Nba6 {[%clk 0:00:10.2]} 20. h3 {[%clk 0:01:18.6]} 20... Qxg3 {[%clk
0:00:08]} 21. fxg3 {[%clk 0:01:17.6]} 21... Ke8 {[%clk 0:00:08.1]} 22. g4 {[%clk
0:01:13.9]} 22... Be6 {[%clk 0:00:04.1]} 23. Ne4 {[%clk 0:01:13.2]} 23... Kd7
{[%clk 0:00:04.1]} 24. Ng5 {[%clk 0:01:08.8]} 24... Nd5 {[%clk 0:00:03.9]} 25.
Nxe6 {[%clk 0:01:03.8]} 25... Kxe6 {[%clk 0:00:03.9]} 26. Bd4 {[%clk 0:00:59.1]}
26... Bh6 {[%clk 0:00:03.3]} 27. Rae1+ {[%clk 0:00:58.5]} 27... Kd7 {[%clk
0:00:03.5]} 28. h4 {[%clk 0:00:57.5]} 28... Rg8 {[%clk 0:00:03.3]} 29. g5 {[%clk
0:00:50.7]} 29... Bg7 {[%clk 0:00:03.8]} 30. Rf7 {[%clk 0:00:46.6]} 30... Ke8
{[%clk 0:00:02.3]} 31. Rxg7 {[%clk 0:00:45.6]} 1-0

[Event "*** SCC Grand Prix: Titled Tuesday Blitz"]
[Site "Chess.com"]
[Date "2020.09.29"]
[Round "6"]
[White "Goryachkina"]
[Black "stolencandy13"]
[Result "1-0"]
[WhiteElo "2644"]
[BlackElo "2463"]
[TimeControl "180+1"]
[EndTime "11:05:10 PDT"]
[Termination "Goryachkina won by resignation"]

1. e4 {[%clk 0:03:00.9]} 1... c6 {[%clk 0:02:58.5]} 2. d4 {[%clk 0:03:00.6]}
2... d5 {[%clk 0:02:59.4]} 3. exd5 {[%clk 0:03:00.9]} 3... cxd5 {[%clk
0:02:56.3]} 4. Bd3 {[%clk 0:03:01.1]} 4... Nc6 {[%clk 0:02:56.2]} 5. c3 {[%clk
0:03:01.2]} 5... Qc7 {[%clk 0:02:54.1]} 6. h3 {[%clk 0:02:59.2]} 6... Nf6 {[%clk
0:02:53.6]} 7. Nf3 {[%clk 0:02:56.9]} 7... e5 {[%clk 0:02:49.1]} 8. dxe5 {[%clk
0:02:54]} 8... Nxe5 {[%clk 0:02:50]} 9. O-O {[%clk 0:02:51.7]} 9... Bd6 {[%clk
0:02:45.5]} 10. Bg5 {[%clk 0:02:23.8]} 10... Nfd7 {[%clk 0:02:38.7]} 11. Nxe5
{[%clk 0:02:17.5]} 11... Nxe5 {[%clk 0:02:36.3]} 12. Bb5+ {[%clk 0:02:17.4]}
12... Bd7 {[%clk 0:02:33.2]} 13. Bxd7+ {[%clk 0:02:17]} 13... Qxd7 {[%clk
0:02:31.7]} 14. Qxd5 {[%clk 0:02:12.6]} 14... Qc6 {[%clk 0:02:08.7]} 15. Qxc6+
{[%clk 0:02:08.6]} 15... Nxc6 {[%clk 0:02:09.6]} 16. Re1+ {[%clk 0:02:07]} 16...
Kd7 {[%clk 0:02:09.7]} 17. Nd2 {[%clk 0:02:06.7]} 17... f6 {[%clk 0:02:06.6]}
18. Be3 {[%clk 0:02:03.9]} 18... Rad8 {[%clk 0:01:59.3]} 19. Rad1 {[%clk
0:01:55.7]} 19... Kc8 {[%clk 0:01:56.5]} 20. Nc4 {[%clk 0:01:39]} 20... Bc7
{[%clk 0:01:56.7]} 21. a4 {[%clk 0:01:39]} 21... h5 {[%clk 0:01:46.5]} 22. Kf1
{[%clk 0:01:35.4]} 22... h4 {[%clk 0:01:38.8]} 23. b4 {[%clk 0:01:33.1]} 23...
Kb8 {[%clk 0:01:27.9]} 24. Ke2 {[%clk 0:01:20.9]} 24... Rhe8 {[%clk 0:01:22.6]}
25. Rxd8+ {[%clk 0:01:19.8]} 25... Rxd8 {[%clk 0:01:20.9]} 26. Rd1 {[%clk
0:01:19.6]} 26... Re8 {[%clk 0:01:19.5]} 27. Rd7 {[%clk 0:01:08.3]} 27... g5
{[%clk 0:01:19.2]} 28. b5 {[%clk 0:01:01.4]} 28... Ne5 {[%clk 0:01:16.9]} 29.
Nxe5 {[%clk 0:01:01.4]} 29... Bxe5 {[%clk 0:01:14.6]} 30. Kd3 {[%clk 0:01:01.2]}
30... Rc8 {[%clk 0:01:06]} 31. c4 {[%clk 0:01:00.9]} 31... b6 {[%clk 0:01:02.8]}
32. a5 {[%clk 0:00:59.3]} 32... Bc7 {[%clk 0:00:52.1]} 33. Ke4 {[%clk
0:00:47.1]} 33... Re8+ {[%clk 0:00:49.2]} 34. Kd5 {[%clk 0:00:44]} 34... bxa5
{[%clk 0:00:43.8]} 35. Bxa7+ {[%clk 0:00:33.1]} 35... Kc8 {[%clk 0:00:43.9]} 36.
Rf7 {[%clk 0:00:31.9]} 36... a4 {[%clk 0:00:41.5]} 37. b6 {[%clk 0:00:25.8]}
37... Be5 {[%clk 0:00:23.8]} 38. b7+ {[%clk 0:00:24.8]} 38... Kd8 {[%clk
0:00:23.8]} 39. Bb6+ {[%clk 0:00:21.4]} 1-0

[Event "*** SCC Grand Prix: Titled Tuesday Blitz"]
[Site "Chess.com"]
[Date "2020.09.29"]
[Round "6"]
[White "Julianos82"]
[Black "rynos0411"]
[Result "0-1"]
[WhiteElo "2308"]
[BlackElo "2430"]
[TimeControl "180+1"]
[EndTime "11:05:10 PDT"]
[Termination "rynos0411 won by checkmate"]

1. d4 {[%clk 0:03:00.9]} 1... Nf6 {[%clk 0:02:56.3]} 2. Nf3 {[%clk 0:02:59]}
2... e6 {[%clk 0:02:54.8]} 3. Bg5 {[%clk 0:02:57.5]} 3... d5 {[%clk 0:02:55.7]}
4. e3 {[%clk 0:02:55.6]} 4... Be7 {[%clk 0:02:54.8]} 5. Nbd2 {[%clk 0:02:54.2]}
5... O-O {[%clk 0:02:50.5]} 6. Bd3 {[%clk 0:02:53.9]} 6... c5 {[%clk 0:02:49.4]}
7. c3 {[%clk 0:02:53.7]} 7... Nc6 {[%clk 0:02:50]} 8. O-O {[%clk 0:02:51.2]}
8... b6 {[%clk 0:02:50]} 9. Ne5 {[%clk 0:02:49.4]} 9... Bb7 {[%clk 0:02:45.4]}
10. f4 {[%clk 0:02:43.4]} 10... cxd4 {[%clk 0:02:44.9]} 11. exd4 {[%clk
0:02:40.1]} 11... Rc8 {[%clk 0:02:31.2]} 12. Qf3 {[%clk 0:02:32]} 12... Nd7
{[%clk 0:02:21.5]} 13. Bxh7+ {[%clk 0:02:26.1]} 13... Kxh7 {[%clk 0:02:15]} 14.
Qh5+ {[%clk 0:02:27]} 14... Kg8 {[%clk 0:02:15.2]} 15. Rf3 {[%clk 0:02:04.8]}
15... Ndxe5 {[%clk 0:01:56.2]} 16. Rh3 {[%clk 0:01:54.1]} 16... f6 {[%clk
0:01:55.5]} 17. fxe5 {[%clk 0:01:41.5]} 17... fxg5 {[%clk 0:01:34.3]} 18. Rf1
{[%clk 0:01:35]} 18... Rxf1+ {[%clk 0:01:32.6]} 19. Nxf1 {[%clk 0:01:35.9]}
19... g4 {[%clk 0:01:21.2]} 20. Qxg4 {[%clk 0:01:20.9]} 20... Qd7 {[%clk
0:01:17.6]} 21. Qh5 {[%clk 0:01:10.9]} 21... Rf8 {[%clk 0:01:15.6]} 22. Ne3
{[%clk 0:01:07.8]} 22... Ba6 {[%clk 0:01:11.8]} 23. Qg6 {[%clk 0:00:46.9]} 23...
Nxe5 {[%clk 0:00:53.1]} 24. Qh7+ {[%clk 0:00:22.3]} 24... Kf7 {[%clk 0:00:52.4]}
25. dxe5 {[%clk 0:00:21.4]} 25... Ke8 {[%clk 0:00:48.3]} 26. Rg3 {[%clk
0:00:20.9]} 26... Bc5 {[%clk 0:00:48]} 27. h3 {[%clk 0:00:20.9]} 27... Qc7
{[%clk 0:00:43]} 28. Rxg7 {[%clk 0:00:20.2]} 28... Bxe3+ {[%clk 0:00:41.4]} 29.
Kh1 {[%clk 0:00:18.9]} 29... Qc5 {[%clk 0:00:19.5]} 30. Rc7 {[%clk 0:00:14.2]}
30... Rf1+ {[%clk 0:00:17.6]} 31. Kh2 {[%clk 0:00:13.7]} 31... Bf4+ {[%clk
0:00:18.1]} 32. g3 {[%clk 0:00:12]} 32... Qf2# {[%clk 0:00:16.8]} 0-1

[Event "*** SCC Grand Prix: Titled Tuesday Blitz"]
[Site "Chess.com"]
[Date "2020.09.29"]
[Round "6"]
[White "TokChess"]
[Black "ElusiveCat"]
[Result "0-1"]
[WhiteElo "2395"]
[BlackElo "2296"]
[TimeControl "180+1"]
[EndTime "11:05:10 PDT"]
[Termination "ElusiveCat won by resignation"]

1. e4 {[%clk 0:02:54.7]} 1... c5 {[%clk 0:02:55.9]} 2. Ne2 {[%clk 0:02:51.2]}
2... d6 {[%clk 0:02:54.9]} 3. g3 {[%clk 0:02:49.4]} 3... g6 {[%clk 0:02:53]} 4.
Bg2 {[%clk 0:02:49.8]} 4... Bg7 {[%clk 0:02:53]} 5. O-O {[%clk 0:02:48.2]} 5...
Nc6 {[%clk 0:02:52.7]} 6. c3 {[%clk 0:02:48]} 6... e5 {[%clk 0:02:52.5]} 7. a3
{[%clk 0:02:46.8]} 7... a5 {[%clk 0:02:45.4]} 8. a4 {[%clk 0:02:45.9]} 8... Nge7
{[%clk 0:02:45.5]} 9. Na3 {[%clk 0:02:46.3]} 9... O-O {[%clk 0:02:44.7]} 10. Nb5
{[%clk 0:02:46.9]} 10... Be6 {[%clk 0:02:38.3]} 11. d4 {[%clk 0:02:39.3]} 11...
cxd4 {[%clk 0:02:31.5]} 12. cxd4 {[%clk 0:02:39.8]} 12... Bc4 {[%clk 0:02:30.1]}
13. d5 {[%clk 0:02:31.3]} 13... Nb4 {[%clk 0:02:25.8]} 14. b3 {[%clk 0:02:17.5]}
14... Bd3 {[%clk 0:02:05.1]} 15. Bd2 {[%clk 0:01:44]} 15... Bxb5 {[%clk
0:02:04.3]} 16. axb5 {[%clk 0:01:42.8]} 16... Qb6 {[%clk 0:02:00.8]} 17. Bxb4
{[%clk 0:01:35.5]} 17... axb4 {[%clk 0:01:59.9]} 18. Qd3 {[%clk 0:01:35.3]}
18... f5 {[%clk 0:01:50.8]} 19. Ra4 {[%clk 0:01:22.6]} 19... fxe4 {[%clk
0:01:44.7]} 20. Qxe4 {[%clk 0:01:14]} 20... Rxa4 {[%clk 0:01:15.7]} 21. bxa4
{[%clk 0:01:13.8]} 21... Qc5 {[%clk 0:01:04.8]} 22. Bh3 {[%clk 0:01:07]} 22...
b3 {[%clk 0:00:57.4]} 23. Be6+ {[%clk 0:01:06.8]} 23... Kh8 {[%clk 0:00:56.9]}
24. Kg2 {[%clk 0:01:01.4]} 24... b2 {[%clk 0:00:47]} 25. f3 {[%clk 0:00:43.4]}
25... Nf5 {[%clk 0:00:36.1]} 26. Rb1 {[%clk 0:00:42]} 26... Ne3+ {[%clk
0:00:29.5]} 27. Kh3 {[%clk 0:00:37.3]} 27... Nc4 {[%clk 0:00:29.2]} 28. Qc2
{[%clk 0:00:20.5]} 28... Qb4 {[%clk 0:00:22.4]} 29. Nc3 {[%clk 0:00:18.2]} 29...
e4 {[%clk 0:00:18.8]} 30. Nxe4 {[%clk 0:00:13.7]} 30... Na3 {[%clk 0:00:18.8]}
31. Qxb2 {[%clk 0:00:12.2]} 31... Bxb2 {[%clk 0:00:17.8]} 0-1

[Event "*** SCC Grand Prix: Titled Tuesday Blitz"]
[Site "Chess.com"]
[Date "2020.09.29"]
[Round "6"]
[White "Gahan-MG"]
[Black "TheCavemanChesss"]
[Result "0-1"]
[WhiteElo "2569"]
[BlackElo "2453"]
[TimeControl "180+1"]
[EndTime "11:05:14 PDT"]
[Termination "TheCavemanChesss won by resignation"]

1. e4 {[%clk 0:03:00.2]} 1... c5 {[%clk 0:02:59.4]} 2. c3 {[%clk 0:02:56.1]}
2... e6 {[%clk 0:02:58.8]} 3. d4 {[%clk 0:02:56]} 3... d5 {[%clk 0:02:58.2]} 4.
exd5 {[%clk 0:02:55.1]} 4... exd5 {[%clk 0:02:58.4]} 5. Nf3 {[%clk 0:02:54.6]}
5... Nf6 {[%clk 0:02:57.9]} 6. Bb5+ {[%clk 0:02:53.8]} 6... Bd7 {[%clk
0:02:55.7]} 7. Bxd7+ {[%clk 0:02:49.4]} 7... Nbxd7 {[%clk 0:02:56.6]} 8. O-O
{[%clk 0:02:47.9]} 8... Be7 {[%clk 0:02:57.1]} 9. dxc5 {[%clk 0:02:47.7]} 9...
Nxc5 {[%clk 0:02:56.5]} 10. Re1 {[%clk 0:02:39]} 10... O-O {[%clk 0:02:56]} 11.
Be3 {[%clk 0:02:38.4]} 11... Re8 {[%clk 0:02:47.8]} 12. Nbd2 {[%clk 0:02:37.8]}
12... Rc8 {[%clk 0:02:40.7]} 13. Nb3 {[%clk 0:02:36.3]} 13... Nce4 {[%clk
0:02:33.4]} 14. Nbd4 {[%clk 0:02:34]} 14... Bd6 {[%clk 0:02:28.5]} 15. h3 {[%clk
0:02:32]} 15... a6 {[%clk 0:02:25.2]} 16. Qb3 {[%clk 0:02:29.6]} 16... Qc7
{[%clk 0:02:21.1]} 17. Rad1 {[%clk 0:02:27.9]} 17... h6 {[%clk 0:02:12.8]} 18.
Nf5 {[%clk 0:02:23.8]} 18... Bc5 {[%clk 0:02:06.2]} 19. Bd4 {[%clk 0:02:11.8]}
19... Kh7 {[%clk 0:02:01.5]} 20. Qc2 {[%clk 0:02:04.8]} 20... g6 {[%clk
0:02:00.2]} 21. Ne3 {[%clk 0:01:57.5]} 21... Rcd8 {[%clk 0:01:50.5]} 22. h4
{[%clk 0:01:40.5]} 22... Qf4 {[%clk 0:01:41.6]} 23. Bxc5 {[%clk 0:01:24.9]}
23... Nxc5 {[%clk 0:01:35.7]} 24. Rd4 {[%clk 0:01:24.1]} 24... Re4 {[%clk
0:01:29.8]} 25. Qd1 {[%clk 0:01:18.5]} 25... Ne6 {[%clk 0:00:58.3]} 26. Rd3
{[%clk 0:00:53]} 26... Qd6 {[%clk 0:00:24.1]} 27. g3 {[%clk 0:00:43.6]} 27...
Qb6 {[%clk 0:00:24.1]} 28. b3 {[%clk 0:00:37.7]} 28... Qa5 {[%clk 0:00:24.2]}
29. a4 {[%clk 0:00:34.2]} 29... Qc5 {[%clk 0:00:23.1]} 30. Kg2 {[%clk
0:00:32.4]} 30... d4 {[%clk 0:00:20.5]} 31. cxd4 {[%clk 0:00:29.1]} 31... Nxd4
{[%clk 0:00:21.4]} 32. Nc4 {[%clk 0:00:14.7]} 32... Nxf3 {[%clk 0:00:20.7]} 33.
Kxf3 {[%clk 0:00:08.6]} 33... Rxd3+ {[%clk 0:00:20.3]} 34. Qxd3 {[%clk
0:00:07.8]} 34... Rxe1 {[%clk 0:00:20.9]} 0-1

[Event "*** SCC Grand Prix: Titled Tuesday Blitz"]
[Site "Chess.com"]
[Date "2020.09.29"]
[Round "6"]
[White "Rogarcia1"]
[Black "ural58"]
[Result "0-1"]
[WhiteElo "2079"]
[BlackElo "2346"]
[TimeControl "180+1"]
[EndTime "11:05:14 PDT"]
[Termination "ural58 won by resignation"]

1. e4 {[%clk 0:03:00.9]} 1... d5 {[%clk 0:02:57.7]} 2. exd5 {[%clk 0:03:00.7]}
2... Qxd5 {[%clk 0:01:35.1]} 3. Nc3 {[%clk 0:02:58.4]} 3... Qa5 {[%clk
0:01:31.6]} 4. d4 {[%clk 0:02:57.8]} 4... Nf6 {[%clk 0:01:31.1]} 5. Nf3 {[%clk
0:02:56.1]} 5... Nc6 {[%clk 0:01:31]} 6. Bb5 {[%clk 0:02:43]} 6... Ne4 {[%clk
0:00:59.3]} 7. Bxc6+ {[%clk 0:02:25.8]} 7... bxc6 {[%clk 0:00:57.4]} 8. O-O
{[%clk 0:02:16.7]} 8... Nxc3 {[%clk 0:00:56.5]} 9. bxc3 {[%clk 0:02:16.4]} 9...
Bf5 {[%clk 0:00:56.6]} 10. Bf4 {[%clk 0:02:12.3]} 10... Qxc3 {[%clk 0:00:51.4]}
11. Bxc7 {[%clk 0:02:06.3]} 11... e6 {[%clk 0:00:50.5]} 12. Qc1 {[%clk
0:01:39.3]} 12... Ba3 {[%clk 0:00:44.3]} 13. Qf4 {[%clk 0:01:38.3]} 13... O-O
{[%clk 0:00:41.3]} 14. Nh4 {[%clk 0:01:18.3]} 14... Bxc2 {[%clk 0:00:37.1]} 15.
Rae1 {[%clk 0:01:11.9]} 15... Be7 {[%clk 0:00:32.8]} 16. Re3 {[%clk 0:01:07.7]}
16... Qd2 {[%clk 0:00:26.4]} 17. Nf3 {[%clk 0:01:01.4]} 17... Qb4 {[%clk
0:00:22.3]} 18. Qg3 {[%clk 0:00:54.1]} 18... Bg6 {[%clk 0:00:19.3]} 19. Rd1
{[%clk 0:00:49.8]} 19... Rac8 {[%clk 0:00:18.9]} 20. Be5 {[%clk 0:00:46.3]}
20... Rfd8 {[%clk 0:00:18.2]} 21. h4 {[%clk 0:00:43.1]} 21... h5 {[%clk
0:00:17.5]} 22. Ng5 {[%clk 0:00:39.7]} 22... c5 {[%clk 0:00:17.7]} 23. Nf3
{[%clk 0:00:32.9]} 23... Bf6 {[%clk 0:00:17.4]} 24. Bxf6 {[%clk 0:00:32.3]}
24... gxf6 {[%clk 0:00:18.3]} 25. Qf4 {[%clk 0:00:27.7]} 25... Kg7 {[%clk
0:00:17.4]} 26. g4 {[%clk 0:00:23.7]} 26... hxg4 {[%clk 0:00:16.7]} 27. Qxg4
{[%clk 0:00:23.7]} 27... cxd4 {[%clk 0:00:16.5]} 28. h5 {[%clk 0:00:19.4]} 28...
Qc5 {[%clk 0:00:16.5]} 29. hxg6 {[%clk 0:00:19]} 29... dxe3 {[%clk 0:00:16.7]}
30. gxf7+ {[%clk 0:00:18.3]} 30... Kxf7 {[%clk 0:00:17]} 31. Rf1 {[%clk
0:00:17.3]} 31... Rg8 {[%clk 0:00:16.1]} 0-1

[Event "*** SCC Grand Prix: Titled Tuesday Blitz"]
[Site "Chess.com"]
[Date "2020.09.29"]
[Round "6"]
[White "freshfoodcompany"]
[Black "checkmatequen"]
[Result "1-0"]
[WhiteElo "2398"]
[BlackElo "2294"]
[TimeControl "180+1"]
[EndTime "11:05:15 PDT"]
[Termination "freshfoodcompany won on time"]

1. d4 {[%clk 0:03:00.9]} 1... Nf6 {[%clk 0:02:58.7]} 2. c4 {[%clk 0:03:01.3]}
2... g6 {[%clk 0:02:58]} 3. Nc3 {[%clk 0:03:01.3]} 3... Bg7 {[%clk 0:02:57.9]}
4. e4 {[%clk 0:03:01.7]} 4... d6 {[%clk 0:02:57.5]} 5. Nf3 {[%clk 0:03:01.9]}
5... O-O {[%clk 0:02:54.3]} 6. Be2 {[%clk 0:03:02]} 6... e5 {[%clk 0:02:49.4]}
7. d5 {[%clk 0:03:02.4]} 7... Nbd7 {[%clk 0:02:48]} 8. Bg5 {[%clk 0:03:02.6]}
8... Nc5 {[%clk 0:02:44.1]} 9. Nd2 {[%clk 0:03:02.2]} 9... h6 {[%clk 0:02:33.7]}
10. Be3 {[%clk 0:02:59.2]} 10... Kh7 {[%clk 0:02:28.6]} 11. b4 {[%clk 0:02:58]}
11... Na6 {[%clk 0:02:23.6]} 12. Rb1 {[%clk 0:02:53.6]} 12... c5 {[%clk
0:02:20.6]} 13. dxc6 {[%clk 0:02:46.6]} 13... bxc6 {[%clk 0:02:18.9]} 14. O-O
{[%clk 0:02:45.3]} 14... Be6 {[%clk 0:02:15.5]} 15. c5 {[%clk 0:02:40.3]} 15...
d5 {[%clk 0:02:12.9]} 16. exd5 {[%clk 0:02:38.3]} 16... cxd5 {[%clk 0:02:09.7]}
17. Bxa6 {[%clk 0:02:33.6]} 17... d4 {[%clk 0:02:09.2]} 18. Bxd4 {[%clk
0:02:25.7]} 18... exd4 {[%clk 0:02:07.5]} 19. Nce4 {[%clk 0:02:24.9]} 19... Nxe4
{[%clk 0:02:04.7]} 20. Nxe4 {[%clk 0:02:24]} 20... Bd5 {[%clk 0:02:05.6]} 21.
Re1 {[%clk 0:02:13.3]} 21... Qh4 {[%clk 0:02:00.5]} 22. Ng3 {[%clk 0:02:06.9]}
22... Rae8 {[%clk 0:01:54]} 23. Qd2 {[%clk 0:01:55.9]} 23... f5 {[%clk
0:01:41.4]} 24. Bb5 {[%clk 0:01:25.9]} 24... Rxe1+ {[%clk 0:01:33.3]} 25. Rxe1
{[%clk 0:01:24.1]} 25... f4 {[%clk 0:01:32.8]} 26. Ne4 {[%clk 0:01:08.8]} 26...
Rf7 {[%clk 0:01:11.7]} 27. Nd6 {[%clk 0:00:53]} 27... Rf6 {[%clk 0:00:40.6]} 28.
Ne8 {[%clk 0:00:46.5]} 28... Re6 {[%clk 0:00:29.9]} 29. Rxe6 {[%clk 0:00:44]}
29... Bxe6 {[%clk 0:00:30.8]} 30. Nxg7 {[%clk 0:00:43.8]} 30... Kxg7 {[%clk
0:00:10.9]} 31. Qxd4+ {[%clk 0:00:43.8]} 31... Kh7 {[%clk 0:00:11.1]} 32. Bc4
{[%clk 0:00:37.8]} 32... Bf5 {[%clk 0:00:03.8]} 33. Qd6 {[%clk 0:00:24.9]} 1-0

[Event "*** SCC Grand Prix: Titled Tuesday Blitz"]
[Site "Chess.com"]
[Date "2020.09.29"]
[Round "6"]
[White "karinachess1"]
[Black "SHIVACalypso"]
[Result "1-0"]
[WhiteElo "2502"]
[BlackElo "2340"]
[TimeControl "180+1"]
[EndTime "11:05:16 PDT"]
[Termination "karinachess1 won by resignation"]

1. e4 {[%clk 0:03:00.9]} 1... e6 {[%clk 0:02:58.6]} 2. d4 {[%clk 0:03:00.5]}
2... d5 {[%clk 0:02:59]} 3. Nc3 {[%clk 0:03:00.8]} 3... Nf6 {[%clk 0:02:57.5]}
4. e5 {[%clk 0:03:01.2]} 4... Nfd7 {[%clk 0:02:57.2]} 5. f4 {[%clk 0:03:01.9]}
5... c5 {[%clk 0:02:57.1]} 6. Nf3 {[%clk 0:03:02.6]} 6... Nc6 {[%clk 0:02:56.7]}
7. Be3 {[%clk 0:03:03.2]} 7... Be7 {[%clk 0:02:54.2]} 8. Qd2 {[%clk 0:03:03.4]}
8... O-O {[%clk 0:02:54.2]} 9. dxc5 {[%clk 0:03:00.5]} 9... Qa5 {[%clk
0:02:52.3]} 10. Nd4 {[%clk 0:02:40.7]} 10... Nxc5 {[%clk 0:02:34.1]} 11. Be2
{[%clk 0:02:36.4]} 11... f6 {[%clk 0:02:30.9]} 12. exf6 {[%clk 0:02:23.6]} 12...
Bxf6 {[%clk 0:02:30.6]} 13. O-O {[%clk 0:02:24.2]} 13... Ne4 {[%clk 0:01:45.8]}
14. Nxe4 {[%clk 0:02:16.3]} 14... Qxd2 {[%clk 0:01:42.4]} 15. Nxf6+ {[%clk
0:02:07.3]} 15... gxf6 {[%clk 0:01:38.6]} 16. Bxd2 {[%clk 0:02:08.2]} 16... Nxd4
{[%clk 0:01:37.7]} 17. Bd3 {[%clk 0:02:08.1]} 17... Bd7 {[%clk 0:01:33.2]} 18.
c3 {[%clk 0:01:58.9]} 18... Nc6 {[%clk 0:01:31.5]} 19. Rae1 {[%clk 0:01:56.8]}
19... e5 {[%clk 0:01:31.2]} 20. fxe5 {[%clk 0:01:49.5]} 20... fxe5 {[%clk
0:01:32.1]} 21. Bh6 {[%clk 0:01:50]} 21... Rxf1+ {[%clk 0:01:27.6]} 22. Rxf1
{[%clk 0:01:50.9]} 22... e4 {[%clk 0:01:27]} 23. Be2 {[%clk 0:01:51.1]} 23...
Ne7 {[%clk 0:01:18.4]} 24. g4 {[%clk 0:01:32]} 24... Ng6 {[%clk 0:01:12.6]} 25.
h3 {[%clk 0:01:28.7]} 25... Re8 {[%clk 0:01:07]} 26. Kh2 {[%clk 0:01:25.6]}
26... Re7 {[%clk 0:00:57.8]} 27. h4 {[%clk 0:01:09.3]} 27... Rf7 {[%clk
0:00:55.6]} 28. Rxf7 {[%clk 0:01:02.9]} 28... Kxf7 {[%clk 0:00:56.5]} 29. Kg3
{[%clk 0:01:03]} 29... Kf6 {[%clk 0:00:51.6]} 30. h5 {[%clk 0:00:59.6]} 30...
Ne5 {[%clk 0:00:45.3]} 31. Be3 {[%clk 0:00:59.9]} 31... Nc6 {[%clk 0:00:37.2]}
32. Kf4 {[%clk 0:00:57.3]} 32... h6 {[%clk 0:00:34.1]} 33. Kg3 {[%clk
0:00:48.6]} 33... Kg7 {[%clk 0:00:33.9]} 34. a3 {[%clk 0:00:43.1]} 34... b6
{[%clk 0:00:34.3]} 35. Kf4 {[%clk 0:00:36.6]} 35... Kf6 {[%clk 0:00:34.2]} 36.
Bf2 {[%clk 0:00:35.4]} 36... Ke6 {[%clk 0:00:20.6]} 37. g5 {[%clk 0:00:33.4]}
37... hxg5+ {[%clk 0:00:21.4]} 38. Kxg5 {[%clk 0:00:34.3]} 38... Ne5 {[%clk
0:00:20.3]} 39. h6 {[%clk 0:00:33.6]} 39... Nf7+ {[%clk 0:00:20.8]} 40. Kg6
{[%clk 0:00:33.2]} 40... Ne5+ {[%clk 0:00:20.4]} 41. Kg7 {[%clk 0:00:32.9]}
41... Nf7 {[%clk 0:00:17.6]} 42. Bg4+ {[%clk 0:00:32.8]} 1-0